fUSD/lending_fUSD_20240920
["ID","MTS","AMOUNT","RATE_DAILY","PERIOD"]
[338678210,1726867417681,500.0,0.00011164,2]
[338678211,1726867437039,291.18,0.00010959,2]
[338678212,1726867483376,500.0,0.00011164,2]
[338678213,1726867500153,450.29,0.00011807,2]
[338678214,1726867515514,230.27365888,0.0001154,2]
[338678215,1726867528843,36793.93430885,0.000101,2]
[338678216,1726867528869,13699.65354098,0.000101,2]
[338678217,1726867535456,500.0,0.00011164,2]
[338678218,1726867565762,194.93,0.0001177,2]
[338678219,1726867573505,500.0,0.00011164,2]
[338678221,1726867586475,500.0,0.00011164,2]
[338678222,1726867594231,200.0,0.00011164,2]
[338678223,1726867594568,200.0,0.00011164,2]
[338678224,1726867594789,500.0,0.00011164,2]
[338678225,1726867594906,200.0,0.00011164,2]
[338678226,1726867595098,500.0,0.00011164,2]
[338678227,1726867595250,200.0,0.00011164,2]
[338678228,1726867595585,252.0,0.00011164,2]
[338678229,1726867596002,500.0,0.00011164,2]
[338678230,1726867596911,500.0,0.00011164,2]
[338678231,1726867597781,500.0,0.00011164,2]
[338678232,1726867598666,500.0,0.00011164,2]
[338678233,1726867598959,500.0,0.00011164,2]
[338678234,1726867599270,500.0,0.00011164,2]
[338678235,1726867599594,500.0,0.00011164,2]
[338678236,1726867599905,500.0,0.00011164,2]
[338678237,1726867600245,500.0,0.00011164,2]
[338678238,1726867600562,500.0,0.00011164,2]
[338678239,1726867600892,500.0,0.00011164,2]
[338678240,1726867602005,500.0,0.00011164,2]
[338678241,1726867602204,500.0,0.00011164,2]
[338678242,1726867602521,500.0,0.00011164,2]
[338678243,1726867603533,500.0,0.00011164,2]
[338678244,1726867603868,500.0,0.00011164,2]
[338678245,1726867604193,500.0,0.00011164,2]
[338678246,1726867604508,500.0,0.00011164,2]
[338678247,1726867604843,500.0,0.00011164,2]
[338678248,1726867605244,500.0,0.00011164,2]
[338678249,1726867606146,500.0,0.00011164,2]
[338678250,1726867606465,500.0,0.00011164,2]
[338678251,1726867606778,500.0,0.00011164,2]
[338678252,1726867607084,500.0,0.00011164,2]
[338678253,1726867607393,500.0,0.00011164,2]
[338678254,1726867607726,500.0,0.00011164,2]
[338678255,1726867608070,500.0,0.00011164,2]
[338678256,1726867608417,500.0,0.00011164,2]
[338678257,1726867608736,500.0,0.00011164,2]
[338678258,1726867609105,500.0,0.00011164,2]
[338678259,1726867610012,500.0,0.00011164,2]
[338678260,1726867610329,500.0,0.00011164,2]
[338678261,1726867610645,500.0,0.00011164,2]
[338678262,1726867610972,500.0,0.00011164,2]
[338678263,1726867611288,500.0,0.00011164,2]
[338678264,1726867611631,500.0,0.00011164,2]
[338678265,1726867611998,500.0,0.00011164,2]
[338678266,1726867612323,500.0,0.00011164,2]
[338678267,1726867612658,500.0,0.00011164,2]
[338678268,1726867613566,500.0,0.00011164,2]
[338678269,1726867614072,500.0,0.00011164,2]
[338678270,1726867614201,500.0,0.00011164,2]
[338678271,1726867614511,500.0,0.00011164,2]
[338678272,1726867614843,500.0,0.00011164,2]
[338678273,1726867615162,500.0,0.00011164,2]
[338678274,1726867615488,500.0,0.00011164,2]
[338678275,1726867615794,500.0,0.00011164,2]
[338678276,1726867616098,500.0,0.00011164,2]
[338678277,1726867616416,500.0,0.00011164,2]
[338678278,1726867616789,500.0,0.00011164,2]
[338678279,1726867617104,500.0,0.00011164,2]
[338678280,1726867617608,500.0,0.00011164,2]
[338678281,1726867617946,500.0,0.00011164,2]
[338678282,1726867618268,250.0,0.00011754,2]
[338678283,1726867618440,500.0,0.00011164,2]
[338678284,1726867618771,500.0,0.00011164,2]
[338678285,1726867619139,500.0,0.00011164,2]
[338678286,1726867619479,500.0,0.00011164,2]
[338678287,1726867619806,500.0,0.00011164,2]
[338678288,1726867620124,500.0,0.00011164,2]
[338678289,1726867620446,500.0,0.00011164,2]
[338678290,1726867620784,500.0,0.00011164,2]
[338678291,1726867621134,500.0,0.00011164,2]
[338678292,1726867621438,500.0,0.00011164,2]
[338678293,1726867622541,500.0,0.00011164,2]
[338678294,1726867622686,500.0,0.00011164,2]
[338678295,1726867623022,500.0,0.00011164,2]
[338678296,1726867623349,500.0,0.00011164,2]
[338678297,1726867623673,500.0,0.00011164,2]
[338678298,1726867623998,500.0,0.00011164,2]
[338678299,1726867624315,500.0,0.00011164,2]
[338678300,1726867624639,500.0,0.00011164,2]
[338678301,1726867624980,500.0,0.00011164,2]
[338678302,1726867625297,500.0,0.00011164,2]
[338678303,1726867625602,500.0,0.00011164,2]
[338678304,1726867625925,500.0,0.00011164,2]
[338678305,1726867626247,500.0,0.00011164,2]
[338678306,1726867626576,500.0,0.00011164,2]
[338678307,1726867627053,500.0,0.00011164,2]
[338678308,1726867627493,541.0,0.00011164,2]
[338678309,1726867642157,153.37,0.000149,31]
[338678310,1726867642202,153.37,0.000149,31]
[338678311,1726867642256,153.37,0.000149,31]
[338678312,1726867642330,153.37,0.000149,31]
[338678313,1726867642378,153.37,0.000149,31]
[338678314,1726867642426,153.37,0.000149,31]
[338678315,1726867642478,153.37,0.000149,31]
[338678316,1726867644847,259.66,9.815e-05,2]
[338678317,1726867658516,347.54,0.00011727,2]
[338678319,1726867697798,168.81,0.00011727,2]
[338678321,1726867706947,12326.41,0.00011727,2]
[338678325,1726867749086,1500.0,0.00011727,2]
[338678326,1726867759114,-259.66,0.00012078,2]
[338678327,1726867759134,-204.75982028,0.000121,2]
[338678328,1726867759154,-300.0,0.000122,4]
[338678329,1726867759174,-700.0,0.000123,4]
[338678330,1726867759195,-1000.0,0.000124,4]
[338678331,1726867759216,-1400.0,0.000125,4]
[338678332,1726867759236,-1222.5900135,0.00012506,2]
[338678338,1726867792723,177.36,0.00010959,2]
[338678345,1726867832092,-125.5368865,0.00012506,2]
[338678346,1726867832102,-150.0,0.00012558,2]
[338678347,1726867832111,-1500.0,0.00012562,2]
[338678348,1726867832121,-1500.0,0.00012566,2]
[338678349,1726867832130,-150.0,0.00012567,2]
[338678350,1726867832139,-1359.87143842,0.00012571,2]
[338678351,1726867832150,-150.0,0.00012579,2]
[338678352,1726867832160,-1700.0,0.000126,4]
[338678353,1726867832170,-150.0,0.00012601,2]
[338678354,1726867832180,-499.99,0.00012601,2]
[338678355,1726867832192,-2354.24936244,0.00012626,2]
[338678356,1726867832203,-150.0,0.00012687,2]
[338678357,1726867832214,-187.019136,0.000127,2]
[338678358,1726867832224,-300.0,0.000127,4]
[338678359,1726867832233,-500.0,0.00012723,2]
[338678360,1726867832243,-150.0,0.00012724,2]
[338678361,1726867832252,-469.3346,0.00012725,2]
[338678362,1726867832261,-2077.7187,0.00012725,2]
[338678363,1726867832271,-20675.2595,0.00012725,2]
[338678364,1726867832281,-1113.1381,0.00012725,2]
[338678365,1726867832291,-4936.79998264,0.00012726,2]
[338678366,1726867832311,-3136.59631736,0.00012726,2]
[338678367,1726867832322,-150.02062706,0.00012726,2]
[338678368,1726867832333,-643.9983379,0.00012726,2]
[338678369,1726867832343,-175.39910848,0.00012726,2]
[338678370,1726867832354,-178.58177673,0.00012726,2]
[338678371,1726867832363,-947.0594204,0.00012726,2]
[338678372,1726867832374,-643.99833786,0.00012745,2]
[338678373,1726867832385,-643.99833786,0.00012765,2]
[338678374,1726867832395,-150.02062703,0.0001277,2]
[338678376,1726867832406,-4742.39621658,0.0001278,2]
[338678377,1726867832415,-643.99833786,0.00012784,2]
[338678378,1726867832426,-300.0,0.000128,4]
[338678379,1726867832436,-643.99833786,0.00012803,2]
[338678380,1726867832446,-150.02062703,0.00012813,2]
[338678381,1726867832456,-178.58177673,0.00012813,2]
[338678382,1726867832465,-947.05942039,0.00012813,2]
[338678383,1726867832474,-1500.0,0.00012814,2]
[338678384,1726867832483,-155.99,0.00012815,2]
[338678385,1726867832492,-643.99833786,0.00012823,2]
[338678386,1726867832501,-4535.05676957,0.00012824,2]
[338678387,1726867832511,-10343.4375374,0.00012825,2]
[338678388,1726867832522,-224.57554127,0.00012825,2]
[338678389,1726867832531,-2000.0,0.00012825,2]
[338678390,1726867832540,-432553.8327278,0.00012825,2]
[338678391,1726867832549,-10258.02379067,0.00012826,2]
[338678392,1726867832562,-3100.0,0.00012826,2]
[338678393,1726867832573,-597.86703799,0.00012826,2]
[338678394,1726867832600,-3987.45282922,0.00012826,2]
[338678395,1726867832611,-812.9464343,0.00012826,2]
[338678396,1726867832622,-91307.30104842,0.00012826,2]
[338678397,1726867832637,-1435.23226309,0.00012826,2]
[338678398,1726867832648,-920.06431593,0.00012826,2]
[338678399,1726867832659,-3164.75000067,0.00012826,2]
[338678400,1726867832673,-704.92261432,0.00012826,2]
[338678401,1726867832685,-2138.831207,0.00012826,2]
[338678402,1726867832696,-653.18224521,0.00012826,2]
[338678404,1726867838153,-300.0,0.00012826,2]
[338678405,1726867838165,-1606.73102151,0.00012826,2]
[338678406,1726867838214,-1989.47898931,0.00012826,2]
[338678407,1726867838331,-3181.17244625,0.00012826,2]
[338678408,1726867838344,-6801.45222068,0.00012826,2]
[338678571,1726867840074,-770.58734516,0.00012826,2]
[338679022,1726867844349,-2775.94000765,0.00012826,2]
[338679024,1726867844360,-1669.33501762,0.00012826,2]
[338679026,1726867844371,-938.8518182,0.00012826,2]
[338679028,1726867844383,-421.9692974,0.00012826,2]
[338679043,1726867844574,-224.57554126,0.00012825,2]
[338679044,1726867844583,-870.43819515,0.00012826,2]
[338679047,1726867844598,-14649.53242735,0.00012826,2]
[338679189,1726867846096,-343.53915486,0.00012826,2]
[338679191,1726867846107,-12643.10906386,0.00012826,2]
[338679193,1726867846119,-3165.03701549,0.00012826,2]
[338679195,1726867846131,-416.0689448,0.00012826,2]
[338679198,1726867846154,-807.170152,0.00012826,2]
[338679200,1726867846165,-394.43774476,0.00012826,2]
[338679202,1726867846176,-44489.73513785,0.00012826,2]
[338679204,1726867846187,-522.01898272,0.00012826,2]
[338681057,1726867987781,250.0,0.00011854,2]
[338681059,1726868096104,154.45,0.00011797,2]
[338681060,1726868096508,154.45,0.00011817,2]
[338681061,1726868096724,154.45,0.00011836,2]
[338681062,1726868096940,154.45,0.00011856,2]
[338681063,1726868140610,500.0,0.00011164,2]
[338681064,1726868144949,500.0,0.00011164,2]
[338681065,1726868160029,500.0,0.00010068,2]
[338681066,1726868160729,170.92,9.399e-05,2]
[338681067,1726868166291,250.0,0.00011749,2]
[338681068,1726868169132,500.0,0.00011164,2]
[338681069,1726868185089,195.06,0.00011713,2]
[338681071,1726868240078,500.0,0.00011713,2]
[338681072,1726868240394,500.0,0.00011713,2]
[338681073,1726868240769,500.0,0.00011713,2]
[338681074,1726868241326,500.0,0.00011713,2]
[338681075,1726868241567,668.0,0.00011713,2]
[338681076,1726868241844,500.0,0.00011713,2]
[338681077,1726868242191,500.0,0.00011713,2]
[338681078,1726868242507,500.0,0.00011713,2]
[338681079,1726868242836,500.0,0.00011713,2]
[338681080,1726868243199,668.0,0.00011713,2]
[338681081,1726868248107,153.38,0.000149,31]
[338681082,1726868248172,153.38,0.000149,31]
[338681083,1726868248217,153.38,0.000149,31]
[338681084,1726868248330,153.38,0.000149,31]
[338681085,1726868248399,153.38,0.000149,31]
[338681086,1726868248444,153.38,0.000149,31]
[338681087,1726868248507,153.38,0.000149,31]
[338681089,1726868317968,1500.0,0.00011708,2]
[338681090,1726868426709,306.43,9.79e-05,2]
[338681091,1726868436783,161.2,0.00010959,2]
[338681092,1726868454618,732.75604716,0.0001198,2]
[338681093,1726868492477,449.57,0.00011674,2]
[338681094,1726868501732,1000.0,0.00011674,2]
[338681095,1726868518423,250.0,0.0001168,2]
[338681097,1726868561029,1547.74,0.00011668,2]
[338681099,1726868571363,750.0,0.00011677,2]
[338681105,1726868625994,250.0,0.00011673,2]
[338681110,1726868646125,214.2,0.00011673,2]
[338681111,1726868646359,214.2,0.00011676,2]
[338681112,1726868646583,214.2,0.00011679,2]
[338681113,1726868646804,214.2,0.00011682,2]
[338681114,1726868647007,214.2,0.00011685,2]
[338681115,1726868647237,214.2,0.00011688,2]
[338681117,1726868647640,214.2,0.00011691,2]
[338681118,1726868647857,214.2,0.00011694,2]
[338681119,1726868648066,214.2,0.00011697,2]
[338681120,1726868648296,214.2,0.000117,2]
[338681121,1726868648751,214.2,0.00011703,2]
[338681122,1726868649031,214.2,0.00011706,2]
[338681123,1726868649416,214.2,0.0001171,2]
[338681124,1726868649637,214.2,0.00011713,2]
[338681125,1726868649851,214.2,0.00011716,2]
[338681126,1726868650096,214.2,0.00011719,2]
[338681127,1726868650528,214.2,0.00011722,2]
[338681128,1726868650740,214.2,0.00011725,2]
[338681129,1726868650953,214.2,0.00011728,2]
[338681130,1726868651143,214.2,0.00011731,2]
[338681133,1726868705571,170.92,9.343e-05,2]
[338681134,1726868713263,150.0,0.0001154,2]
[338681135,1726868730875,206.16,0.00011701,2]
[338681136,1726868788822,250.0,0.00011691,2]
[338681137,1726868791084,-306.43,0.00012054,2]
[338681138,1726868791106,-900.19163822,0.00012525,2]
[338681139,1726868791127,-150.0,0.00012548,2]
[338681140,1726868791150,-150.0,0.00012564,2]
[338681141,1726868791171,-900.19163813,0.00012567,2]
[338681142,1726868791193,-150.0,0.00012568,2]
[338681143,1726868791213,-300.73,0.000126,2]
[338681144,1726868791236,-150.0,0.000126,2]
[338681145,1726868791257,-769.69,0.00012605,2]
[338681146,1726868791280,-900.19163813,0.00012608,2]
[338681147,1726868791301,-746.40542393,0.00012624,2]
[338681148,1726868791322,-150.0,0.00012624,2]
[338681149,1726868791344,-150.0,0.00012624,2]
[338681150,1726868791365,-271.58912054,0.00012625,2]
[338681151,1726868791388,-4004.58054105,0.00012625,2]
[338681153,1726868853137,153.4,0.000149,31]
[338681154,1726868853196,153.4,0.000149,31]
[338681155,1726868853252,153.4,0.000149,31]
[338681156,1726868853315,153.4,0.000149,31]
[338681157,1726868853372,153.4,0.000149,31]
[338681158,1726868853437,153.4,0.000149,31]
[338681159,1726868853498,153.4,0.000149,31]
[338681160,1726868881888,-300.0,0.000121,4]
[338681161,1726868881911,-600.0,0.000122,4]
[338681162,1726868881933,-1000.0,0.000123,4]
[338681163,1726868881955,-1300.0,0.000124,4]
[338681164,1726868881977,-400.0,0.000125,4]
[338681166,1726868920396,273.69,0.00011753,2]
[338681167,1726868920452,1192.71,0.00011753,2]
[338681172,1726868973151,-1197.9723203,0.000125,4]
[338681177,1726868997433,289.73,9.857e-05,2]
[338681183,1726869032148,-166.52,0.00012111,2]
[338681184,1726869032158,-289.73,0.00012121,2]
[338681185,1726869032168,-166.52,0.0001239,2]
[338681186,1726869032177,-378.30908928,0.000124,5]
[338681187,1726869032214,-3168.51029453,0.000124,5]
[338681188,1726869032226,-5866.8967498,0.000124,5]
[338681189,1726869032238,-329.14260328,0.000124,5]
[338681190,1726869032249,-300.0,0.000124,5]
[338681191,1726869032273,-1466.14126311,0.000124,5]
[338681192,1726869032284,-102.0276797,0.000125,4]
[338681193,1726869032293,-630.1341467,0.00012525,2]
[338681194,1726869032303,-272.22798096,0.00012567,2]
[338681195,1726869032315,-357.90616573,0.00012567,2]
[338681196,1726869032325,-166.52,0.0001259,2]
[338681197,1726869032335,-300.0,0.00012599,2]
[338681198,1726869032345,-300.0,0.000126,4]
[338681199,1726869032354,-166.52,0.00012615,2]
[338681200,1726869032363,-166.52,0.00012615,2]
[338681201,1726869032373,-150.0,0.00012624,2]
[338681202,1726869032383,-336.84020246,0.00012625,2]
[338681203,1726869032392,-237.64048049,0.00012625,2]
[338681204,1726869032402,-155340.65745895,0.00012625,2]
[338681205,1726869032411,-1231.9446,0.00012625,2]
[338681206,1726869032421,-2121.8735,0.00012625,2]
[338681207,1726869032430,-1210.8453,0.00012625,2]
[338681208,1726869032440,-150.0,0.00012632,2]
[338681209,1726869032450,-268.79619324,0.00012639,2]
[338681210,1726869032466,-150.0,0.00012645,2]
[338681212,1726869032476,-150.0,0.00012656,2]
[338681214,1726869032485,-13852.5,0.00012656,2]
[338681216,1726869032495,-237.64048047,0.00012664,2]
[338681218,1726869032509,-150.0,0.00012665,2]
[338681220,1726869032518,-150.0,0.00012682,2]
[338681222,1726869032528,-300.0,0.000127,4]
[338681224,1726869032537,-237.64048047,0.00012704,2]
[338681226,1726869032547,-153.42,0.00012715,2]
[338681227,1726869032558,-150.0,0.0001272,2]
[338681228,1726869032568,-500.0,0.00012722,2]
[338681229,1726869032579,-500.0,0.00012723,2]
[338681230,1726869032589,-500.0,0.00012723,2]
[338681231,1726869032598,-200.0,0.00012723,2]
[338681232,1726869032607,-500.0,0.00012725,2]
[338681233,1726869032617,-1145.6586,0.00012725,2]
[338681234,1726869032626,-19894.36352674,0.00012725,2]
[338681235,1726869032641,-299.00615911,0.00012725,2]
[338681236,1726869032652,-588.01158738,0.00012725,2]
[338681237,1726869032667,-839.21568449,0.00012725,2]
[338681238,1726869032679,-599.63924013,0.00012725,2]
[338681239,1726869032690,-1515.00739933,0.00012725,2]
[338681240,1726869033306,1050.0,0.00011,2]
[338681243,1726869038171,-630.13414669,0.00012608,2]
[338681244,1726869038180,-2894.66421812,0.00012725,2]
[338681247,1726869038452,-2652.64137296,0.00012725,2]
[338681248,1726869038464,-1532.4846,0.00012725,2]
[338681249,1726869038475,-254.94212349,0.00012725,2]
[338681250,1726869038486,-285.49172499,0.00012725,2]
[338681251,1726869038497,-660.24280614,0.00012725,2]
[338681252,1726869038512,-822.49017547,0.00012725,2]
[338681254,1726869038527,-6343.80348218,0.00012725,2]
[338681256,1726869038538,-1357.22542988,0.00012725,2]
[338681258,1726869038549,-2084.0327375,0.00012725,2]
[338681260,1726869038560,-2158.98320904,0.00012725,2]
[338681262,1726869038571,-2166.78342138,0.00012725,2]
[338681265,1726869038583,-282.04696975,0.00012725,2]
[338681266,1726869038593,-566.76354058,0.00012725,2]
[338681268,1726869038604,-2355.0,0.00012725,2]
[338681271,1726869038615,-703.01355159,0.00012725,2]
[338681273,1726869038626,-29517.04542,0.00012725,2]
[338681275,1726869038637,-2894.75,0.00012725,2]
[338681277,1726869038648,-4563.20000002,0.00012725,2]
[338681279,1726869038659,-2177.28935891,0.00012725,2]
[338681443,1726869040214,-662.70634916,0.00012725,2]
[338681445,1726869040226,-517.55778653,0.00012725,2]
[338681447,1726869040237,-474.621015,0.00012725,2]
[338681449,1726869040247,-6760.15931013,0.00012725,2]
[338681451,1726869040256,-117323.19371239,0.00012725,2]
[338681483,1726869040590,-2182.49549069,0.00012725,2]
[338681485,1726869040602,-2537.03952318,0.00012725,2]
[338681487,1726869040613,-2511.31265484,0.00012725,2]
[338681489,1726869040625,-4276.48182047,0.00012725,2]
[338681491,1726869040635,-2141.25728077,0.00012725,2]
[338681494,1726869040649,-4379.11477664,0.00012725,2]
[338681496,1726869040659,-807.664508,0.00012725,2]
[338681499,1726869040676,-15631.19173936,0.00012725,2]
[338681501,1726869040687,-1593.75750387,0.00012725,2]
[338681503,1726869040698,-485.3980518,0.00012725,2]
[338681505,1726869040714,-798.47801632,0.00012725,2]
[338681507,1726869040725,-2525.640404,0.00012725,2]
[338681509,1726869040736,-2242.35735466,0.00012725,2]
[338681512,1726869040748,-2954.1894928,0.00012725,2]
[338681514,1726869040759,-49999.84416003,0.00012725,2]
[338681516,1726869040774,-414.4410234,0.00012725,2]
[338681519,1726869040786,-8646.86063141,0.00012725,2]
[338681521,1726869040796,-505.53116172,0.00012725,2]
[338681522,1726869040807,-470.89476816,0.00012725,2]
[338681524,1726869040817,-902.16144431,0.00012725,2]
[338681526,1726869040828,-630.25841339,0.00012725,2]
[338681529,1726869040843,-2982.13953981,0.00012725,2]
[338681531,1726869040854,-1936.33283096,0.00012725,2]
[338681533,1726869040868,-1026.38209702,0.00012725,2]
[338681535,1726869040877,-2146.65337528,0.00012725,2]
[338681537,1726869040890,-2476.73398211,0.00012725,2]
[338681539,1726869040901,-939.63137312,0.00012725,2]
[338681542,1726869040912,-984.9210532,0.00012725,2]
[338681763,1726869043223,-630.13414669,0.0001265,2]
[338681765,1726869043232,-5699.58601629,0.00012725,2]
[338681767,1726869043241,-29.77983704,0.00012725,2]
[338681772,1726869043280,-5436.26115702,0.00012725,2]
[338681789,1726869043449,-2306.91280594,0.00012725,2]
[338681791,1726869043458,-1000.0,0.00012725,2]
[338681793,1726869043467,-1930.1682,0.00012725,2]
[338681795,1726869043476,-156.2770892,0.00012726,2]
[338681797,1726869043485,-150.02062703,0.00012726,2]
[338681799,1726869043494,-662.24075539,0.00012726,2]
[338681800,1726869043504,-193.68772911,0.00012726,2]
[338681802,1726869043516,-170.54036843,0.00012726,2]
[338681804,1726869043525,-150.0,0.00012733,2]
[338681806,1726869043535,-237.64048047,0.00012743,2]
[338681808,1726869043544,-150.0,0.00012782,2]
[338681810,1726869043554,-237.64048047,0.00012782,2]
[338681812,1726869043563,-150.0,0.00012798,2]
[338681814,1726869043573,-368.48266502,0.00012799,2]
[338681816,1726869043584,-150.0,0.00012799,2]
[338681818,1726869043594,-150.0,0.00012799,2]
[338681820,1726869043603,-300.0,0.000128,4]
[338681822,1726869043613,-466.48023641,0.00012808,2]
[338681824,1726869043625,-33.51976359,0.00012808,2]
[338681826,1726869043634,-516.90023641,0.00012813,2]
[338681828,1726869043645,-145.34051897,0.00012813,2]
[338681830,1726869043654,-200.85733544,0.00012815,2]
[338681832,1726869043663,-153.42,0.00012816,2]
[338681833,1726869043672,-153.42,0.00012816,2]
[338681835,1726869043682,-153.42,0.00012816,2]
[338681837,1726869043691,-153.42,0.00012816,2]
[338681839,1726869043700,-147.73379091,0.00012819,2]
[338681841,1726869043712,-2.26620909,0.00012819,2]
[338681843,1726869043721,-1738.36379091,0.00012821,2]
[338681846,1726869043733,-2080.61360679,0.00012821,2]
[338681848,1726869043742,-6594.33639321,0.00012821,2]
[338682060,1726869046515,-205.9841293,0.00012821,2]
[338682062,1726869046525,-2367.4649615,0.00012821,2]
[338682064,1726869046535,-237.64048047,0.00012821,2]
[338682066,1726869046544,-12023.86012704,0.00012823,2]
[338682068,1726869046554,-500.0,0.00012825,2]
[338682070,1726869046564,-500.0,0.00012825,2]
[338682072,1726869046573,-407.79061455,0.00012825,2]
[338682074,1726869046583,-300.49052901,0.00012825,2]
[338682076,1726869046594,-224.57554126,0.00012825,2]
[338682078,1726869046605,-2000.0,0.00012825,2]
[338682080,1726869046614,-30713.84235439,0.00012825,2]
[338682082,1726869046625,-904.23596,0.00012825,2]
[338682084,1726869046636,-335.451,0.00012825,2]
[338682086,1726869046647,-2695.8483424,0.00012825,2]
[338682088,1726869046657,-1021.47197273,0.00012825,2]
[338682091,1726869046669,-349.99877428,0.00012825,2]
[338682093,1726869046680,-287.88767852,0.00012825,2]
[338682095,1726869046692,-859.59283247,0.00012825,2]
[338682097,1726869046704,-12854.29632384,0.00012825,2]
[338682099,1726869046715,-5923.552,0.00012825,2]
[338682775,1726869074384,217.06,0.0001188,2]
[338682776,1726869077176,158.26,0.00010959,2]
[338682778,1726869102817,964.92,0.00011851,2]
[338682779,1726869115801,150.0,0.00011851,2]
[338682780,1726869125441,501.09970254,0.00011164,2]
[338682781,1726869125769,250.0,0.0001184,2]
[338682782,1726869166735,1000.0,0.0001182,2]
[338683124,1726869178879,500.0,0.00011164,2]
[338683134,1726869179062,500.0,0.00011164,2]
[338683217,1726869183791,250.0,0.0001182,2]
[338683218,1726869184957,500.0,0.00011164,2]
[338683220,1726869221046,500.0,0.00011164,2]
[338683247,1726869281103,231.33,0.00011806,2]
[338683248,1726869288418,500.0,0.00011164,2]
[338683249,1726869300253,150.0,0.00011747,2]
[338683250,1726869413731,170.92,9.438e-05,2]
[338683255,1726869461297,331.95,0.000149,31]
[338683256,1726869461346,331.95,0.000149,31]
[338683257,1726869461394,331.95,0.000149,31]
[338683258,1726869461449,331.95,0.000149,31]
[338683259,1726869461527,331.95,0.000149,31]
[338683260,1726869461580,331.95,0.000149,31]
[338683261,1726869461648,331.95,0.000149,31]
[338683262,1726869461693,331.95,0.000149,31]
[338683263,1726869461727,331.95,0.000149,31]
[338683264,1726869461760,331.95,0.000149,31]
[338683265,1726869461819,331.95,0.000149,31]
[338683266,1726869461881,331.95,0.000149,31]
[338683267,1726869461945,331.95,0.000149,31]
[338683268,1726869462005,331.95,0.000149,31]
[338683269,1726869462065,331.95,0.000149,31]
[338683270,1726869462132,331.95,0.000149,31]
[338683272,1726869553420,500.0,0.00011164,2]
[338683273,1726869602456,150.0,0.00011164,2]
[338683274,1726869602691,150.0,0.00011164,2]
[338683275,1726869603103,150.0,0.00011164,2]
[338683276,1726869603167,150.0,0.00011164,2]
[338683277,1726869603513,150.0,0.00011164,2]
[338683278,1726869603704,150.0,0.00011164,2]
[338683279,1726869603914,150.0,0.00011164,2]
[338683281,1726869604130,150.0,0.00011164,2]
[338683282,1726869604358,150.0,0.00011164,2]
[338683283,1726869604563,150.0,0.00011164,2]
[338683284,1726869604962,150.0,0.00011164,2]
[338683286,1726869605008,150.0,0.00011164,2]
[338683287,1726869605197,150.0,0.00011164,2]
[338683289,1726869605413,150.0,0.00011164,2]
[338683291,1726869605925,150.0,0.00011164,2]
[338683293,1726869606166,150.0,0.00011164,2]
[338683294,1726869606358,150.0,0.00011164,2]
[338683295,1726869606577,154.67203195,0.00011164,2]